[Event "Titled Tuesday Blitz July 25 Early 2023"]
[White "Barwinska, Ewa"]
[Black "Veiga, Jose Francisco R P Neves"]
[WhiteFideId "21833761"]
[BlackFideId "1930087"]
[WhiteElo "2290"]
[BlackElo "2594"]
[Result "0-1"]
[Round "1"]
[TimeControl "180+2"]
[Date "2023.07.25"]
[WhiteClock "0:00:41"]
[BlackClock "0:00:19"]
[Board "177"]

1. e4 {[%clk 0:02:53]}  Nc6 {[%clk 0:02:19]} 2. d4 {[%clk 0:02:53]}  d5 {[%clk 0:02:19]} 3. e5 {[%clk 0:02:50]}  Bf5 {[%clk 0:02:18]} 4. c3 {[%clk 0:02:47]}  e6 {[%clk 0:02:12]} 5. Nd2 {[%clk 0:02:37]}  f6 {[%clk 0:02:12]} 6. f4 {[%clk 0:02:33]}  Nh6 {[%clk 0:02:11]} 7. Be2 {[%clk 0:02:26]}  Be7 {[%clk 0:02:09]} 8. Ngf3 {[%clk 0:02:25]}  O-O {[%clk 0:02:09]} 9. O-O {[%clk 0:02:25]}  fxe5 {[%clk 0:02:07]} 10. dxe5 {[%clk 0:02:21]}  Bc5+ {[%clk 0:01:47]} 11. Kh1 {[%clk 0:02:20]}  Ng4 {[%clk 0:01:47]} 12. Qe1 {[%clk 0:02:05]}  Ne3 {[%clk 0:01:39]} 13. b4 {[%clk 0:01:59]}  Bb6 {[%clk 0:01:39]} 14. Nh4 {[%clk 0:01:50]}  Nxf1 {[%clk 0:01:36]} 15. Nxf1 {[%clk 0:01:50]}  Be4 {[%clk 0:01:35]} 16. Bf3 {[%clk 0:01:48]}  Bxf3 {[%clk 0:01:33]} 17. Nxf3 {[%clk 0:01:49]}  a5 {[%clk 0:01:29]} 18. Qg3 {[%clk 0:01:44]}  axb4 {[%clk 0:01:28]} 19. cxb4 {[%clk 0:01:44]}  Nxb4 {[%clk 0:01:26]} 20. Ng5 {[%clk 0:01:45]}  Qd7 {[%clk 0:01:22]} 21. Qh3 {[%clk 0:01:42]}  h6 {[%clk 0:01:22]} 22. Nxe6 {[%clk 0:01:40]}  Rfe8 {[%clk 0:01:16]} 23. f5 {[%clk 0:01:39]}  Qf7 {[%clk 0:00:49]} 24. Bxh6 {[%clk 0:01:14]}  gxh6 {[%clk 0:00:42]} 25. Qxh6 {[%clk 0:01:15]}  Rxe6 {[%clk 0:00:40]} 26. fxe6 {[%clk 0:01:11]}  Qg7 {[%clk 0:00:40]} 27. Qf4 {[%clk 0:00:57]}  Nd3 {[%clk 0:00:26]} 28. Qf5 {[%clk 0:00:56]}  Nf2+ {[%clk 0:00:26]} 29. Kg1 {[%clk 0:00:56]}  Ne4+ {[%clk 0:00:23]} 30. Kh1 {[%clk 0:00:55]}  Rf8 {[%clk 0:00:24]} 31. Qh5 {[%clk 0:00:50]}  Nf2+ {[%clk 0:00:21]} 32. Kg1 {[%clk 0:00:50]}  Nh3+ {[%clk 0:00:21]} 33. Kh1 {[%clk 0:00:49]}  Qxg2+ {[%clk 0:00:22]} 34. Kxg2 {[%clk 0:00:46]}  Nf4+ {[%clk 0:00:22]} 35. Kh1 {[%clk 0:00:42]}  Nxh5 {[%clk 0:00:23]} 36. Nd2 {[%clk 0:00:42]}  Nf4 {[%clk 0:00:20]} 37. Rg1+ {[%clk 0:00:41]}  Bxg1 {[%clk 0:00:19]} 0-1


[Site "https://www.chess.com"]

[Event "Titled Tuesday Blitz July 25 Early 2023"]
[White "Huynh, Lam Binh Nguyen"]
[Black "Rodchenkov, Sergey D."]
[WhiteFideId "12401633"]
[BlackFideId "4168712"]
[WhiteElo "2287"]
[BlackElo "2592"]
[Result "1-0"]
[Round "1"]
[TimeControl "180+2"]
[Date "2023.07.25"]
[WhiteClock "0:00:42"]
[BlackClock "0:00:19"]
[Board "179"]

1. d4 {[%clk 0:03:00]}  d5 {[%clk 0:02:59]} 2. Bf4 {[%clk 0:03:00]}  Nf6 {[%clk 0:03:00]} 3. e3 {[%clk 0:03:00]}  e6 {[%clk 0:03:00]} 4. c3 {[%clk 0:02:58]}  Bd6 {[%clk 0:03:00]} 5. Nd2 {[%clk 0:02:57]}  O-O {[%clk 0:02:57]} 6. Bd3 {[%clk 0:02:57]}  c5 {[%clk 0:02:53]} 7. Bg3 {[%clk 0:02:49]}  Qc7 {[%clk 0:02:49]} 8. Ngf3 {[%clk 0:02:47]}  Nbd7 {[%clk 0:02:49]} 9. O-O {[%clk 0:02:41]}  Bxg3 {[%clk 0:02:48]} 10. hxg3 {[%clk 0:02:40]}  e5 {[%clk 0:02:49]} 11. dxe5 {[%clk 0:02:38]}  Nxe5 {[%clk 0:02:50]} 12. Nxe5 {[%clk 0:02:39]}  Qxe5 {[%clk 0:02:50]} 13. Nf3 {[%clk 0:02:39]}  Qd6 {[%clk 0:02:51]} 14. c4 {[%clk 0:02:34]}  Bg4 {[%clk 0:02:50]} 15. Qc2 {[%clk 0:02:28]}  h6 {[%clk 0:02:42]} 16. Nd2 {[%clk 0:02:23]}  Rad8 {[%clk 0:02:41]} 17. Nb3 {[%clk 0:02:14]}  b6 {[%clk 0:02:35]} 18. Rac1 {[%clk 0:02:09]}  Qe5 {[%clk 0:02:28]} 19. cxd5 {[%clk 0:02:03]}  Nxd5 {[%clk 0:02:28]} 20. Qc4 {[%clk 0:01:46]}  Nxe3 {[%clk 0:01:52]} 21. fxe3 {[%clk 0:01:47]}  Qxe3+ {[%clk 0:01:52]} 22. Kh2 {[%clk 0:01:47]}  Rxd3 {[%clk 0:01:45]} 23. Qxg4 {[%clk 0:01:46]}  Rd5 {[%clk 0:01:40]} 24. Rce1 {[%clk 0:01:40]}  Qg5 {[%clk 0:01:37]} 25. Qxg5 {[%clk 0:01:35]}  hxg5 {[%clk 0:01:38]} 26. Re7 {[%clk 0:01:35]}  c4 {[%clk 0:01:37]} 27. Nc1 {[%clk 0:01:34]}  f6 {[%clk 0:01:36]} 28. Rxa7 {[%clk 0:01:31]}  Re8 {[%clk 0:01:35]} 29. Kh3 {[%clk 0:01:28]}  Kh7 {[%clk 0:01:34]} 30. Rc7 {[%clk 0:01:22]}  b5 {[%clk 0:01:26]} 31. a4 {[%clk 0:01:22]}  Re4 {[%clk 0:01:07]} 32. a5 {[%clk 0:01:19]}  Kg6 {[%clk 0:01:06]} 33. a6 {[%clk 0:01:14]}  Rd8 {[%clk 0:01:06]} 34. Kh2 {[%clk 0:01:13]}  Ra8 {[%clk 0:01:01]} 35. a7 {[%clk 0:01:12]}  Re6 {[%clk 0:01:01]} 36. Rd1 {[%clk 0:01:12]}  Ra6 {[%clk 0:01:02]} 37. Rdd7 {[%clk 0:01:12]}  Ra1 {[%clk 0:00:59]} 38. g4 {[%clk 0:01:08]}  f5 {[%clk 0:00:42]} 39. Rxg7+ {[%clk 0:01:07]}  Kf6 {[%clk 0:00:43]} 40. Rgf7+ {[%clk 0:01:07]}  Ke5 {[%clk 0:00:42]} 41. Rxf5+ {[%clk 0:01:07]}  Ke4 {[%clk 0:00:43]} 42. Ne2 {[%clk 0:01:04]}  R8xa7 {[%clk 0:00:43]} 43. Rxa7 {[%clk 0:00:58]}  Rxa7 {[%clk 0:00:43]} 44. Rxb5 {[%clk 0:00:59]}  Ke3 {[%clk 0:00:43]} 45. Ng3 {[%clk 0:00:57]}  Kf4 {[%clk 0:00:42]} 46. Kh3 {[%clk 0:00:50]}  Ra2 {[%clk 0:00:30]} 47. Rb4 {[%clk 0:00:49]}  Ke3 {[%clk 0:00:30]} 48. Rxc4 {[%clk 0:00:47]}  Rxb2 {[%clk 0:00:30]} 49. Nf5+ {[%clk 0:00:47]}  Kf2 {[%clk 0:00:29]} 50. Rc3 {[%clk 0:00:47]}  Rb1 {[%clk 0:00:27]} 51. Rf3+ {[%clk 0:00:47]}  Ke2 {[%clk 0:00:28]} 52. Kg3 {[%clk 0:00:48]}  Rb4 {[%clk 0:00:24]} 53. Ng7 {[%clk 0:00:46]}  Rd4 {[%clk 0:00:20]} 54. Ne6 {[%clk 0:00:45]}  Rd5 {[%clk 0:00:21]} 55. Rf5 {[%clk 0:00:43]}  Rd3+ {[%clk 0:00:21]} 56. Rf3 {[%clk 0:00:44]}  Rd5 {[%clk 0:00:21]} 57. Ng7 {[%clk 0:00:43]}  Rc5 {[%clk 0:00:21]} 58. Nf5 {[%clk 0:00:42]}  Re5 {[%clk 0:00:21]} 59. Rf2+ {[%clk 0:00:41]}  Kd3 {[%clk 0:00:21]} 60. Ra2 {[%clk 0:00:41]}  Rb5 {[%clk 0:00:19]} 61. Ra3+ {[%clk 0:00:41]}  Ke4 {[%clk 0:00:18]} 62. Nd6+ {[%clk 0:00:41]}  Kd5 {[%clk 0:00:17]} 63. Nxb5 {[%clk 0:00:42]}  Kc4 {[%clk 0:00:18]} 64. Nd6+ {[%clk 0:00:41]}  Kb4 {[%clk 0:00:19]} 65. Ra8 {[%clk 0:00:41]}  Kc5 {[%clk 0:00:19]} 66. Nf7 {[%clk 0:00:42]} 1-0


[Site "https://www.chess.com"]

[Event "Titled Tuesday Blitz July 25 Early 2023"]
[White "Andreassen, Lars"]
[Black "Rostomyan, Mikayel"]
[WhiteFideId "1504878"]
[BlackFideId "13313754"]
[WhiteElo "2284"]
[BlackElo "2585"]
[Result "1-0"]
[Round "1"]
[TimeControl "180+2"]
[Date "2023.07.25"]
[WhiteClock "0:00:17"]
[BlackClock "0:00:08"]
[Board "181"]

1. d4 {[%clk 0:02:59]}  Nf6 {[%clk 0:02:45]} 2. Nf3 {[%clk 0:02:57]}  e6 {[%clk 0:02:46]} 3. Bg5 {[%clk 0:02:57]}  Be7 {[%clk 0:02:45]} 4. e3 {[%clk 0:02:58]}  d5 {[%clk 0:02:45]} 5. c4 {[%clk 0:02:57]}  O-O {[%clk 0:02:44]} 6. Nc3 {[%clk 0:02:57]}  b6 {[%clk 0:02:43]} 7. Bd3 {[%clk 0:02:56]}  Bb7 {[%clk 0:02:42]} 8. O-O {[%clk 0:02:56]}  Nbd7 {[%clk 0:02:41]} 9. cxd5 {[%clk 0:02:55]}  exd5 {[%clk 0:02:41]} 10. Rc1 {[%clk 0:02:54]}  c5 {[%clk 0:02:37]} 11. Ne5 {[%clk 0:02:53]}  Ne4 {[%clk 0:02:30]} 12. Bxe7 {[%clk 0:02:51]}  Qxe7 {[%clk 0:02:31]} 13. Nxd7 {[%clk 0:02:47]}  Qxd7 {[%clk 0:02:30]} 14. Bxe4 {[%clk 0:02:41]}  dxe4 {[%clk 0:02:30]} 15. dxc5 {[%clk 0:02:41]}  Qe6 {[%clk 0:02:25]} 16. cxb6 {[%clk 0:02:38]}  axb6 {[%clk 0:02:26]} 17. a3 {[%clk 0:02:37]}  Ba6 {[%clk 0:02:22]} 18. Re1 {[%clk 0:02:37]}  Bd3 {[%clk 0:02:20]} 19. f3 {[%clk 0:02:19]}  f5 {[%clk 0:02:17]} 20. f4 {[%clk 0:02:04]}  Rfd8 {[%clk 0:02:12]} 21. Qd2 {[%clk 0:02:02]}  Qb3 {[%clk 0:02:09]} 22. Qf2 {[%clk 0:02:00]}  Rac8 {[%clk 0:01:59]} 23. h3 {[%clk 0:01:58]}  h6 {[%clk 0:01:55]} 24. Kh2 {[%clk 0:01:57]}  b5 {[%clk 0:01:52]} 25. Rg1 {[%clk 0:01:56]}  h5 {[%clk 0:01:14]} 26. g4 {[%clk 0:01:52]}  hxg4 {[%clk 0:01:11]} 27. hxg4 {[%clk 0:01:52]}  Kf7 {[%clk 0:01:06]} 28. gxf5 {[%clk 0:01:47]}  Rh8+ {[%clk 0:01:05]} 29. Kg2 {[%clk 0:01:46]}  b4 {[%clk 0:00:51]} 30. axb4 {[%clk 0:01:44]}  Rb8 {[%clk 0:00:51]} 31. Rh1 {[%clk 0:01:33]}  Rxh1 {[%clk 0:00:41]} 32. Rxh1 {[%clk 0:01:32]}  Qxb4 {[%clk 0:00:23]} 33. Nd1 {[%clk 0:01:14]}  Rc8 {[%clk 0:00:21]} 34. Qh4 {[%clk 0:01:11]}  Rc2+ {[%clk 0:00:20]} 35. Kg3 {[%clk 0:01:12]}  Be2 {[%clk 0:00:10]} 36. Qg5 {[%clk 0:01:05]}  Qb6 {[%clk 0:00:10]} 37. Rh7 {[%clk 0:00:50]}  Qf6 {[%clk 0:00:11]} 38. Nf2 {[%clk 0:00:45]}  Rxb2 {[%clk 0:00:10]} 39. Nxe4 {[%clk 0:00:45]}  Qxg5+ {[%clk 0:00:08]} 40. fxg5 {[%clk 0:00:45]}  Bd3 {[%clk 0:00:07]} 41. g6+ {[%clk 0:00:41]}  Kf8 {[%clk 0:00:07]} 42. Nd6 {[%clk 0:00:36]}  Rb6 {[%clk 0:00:05]} 43. Rh8+ {[%clk 0:00:33]}  Ke7 {[%clk 0:00:05]} 44. Nc8+ {[%clk 0:00:33]}  Kf6 {[%clk 0:00:05]} 45. Nxb6 {[%clk 0:00:32]}  Bxf5 {[%clk 0:00:06]} 46. Kf4 {[%clk 0:00:32]}  Kxg6 {[%clk 0:00:06]} 47. Nd5 {[%clk 0:00:31]}  Bc2 {[%clk 0:00:06]} 48. Ne7+ {[%clk 0:00:31]}  Kf7 {[%clk 0:00:06]} 49. Nf5 {[%clk 0:00:30]}  Kf6 {[%clk 0:00:07]} 50. e4 {[%clk 0:00:27]}  g5+ {[%clk 0:00:07]} 51. Ke3 {[%clk 0:00:26]}  g4 {[%clk 0:00:07]} 52. Rg8 {[%clk 0:00:25]}  Bd1 {[%clk 0:00:06]} 53. Kf4 {[%clk 0:00:25]}  Bf3 {[%clk 0:00:06]} 54. Rf8+ {[%clk 0:00:13]}  Kg6 {[%clk 0:00:05]} 55. e5 {[%clk 0:00:13]}  Bd1 {[%clk 0:00:03]} 56. Rf6+ {[%clk 0:00:14]}  Kh7 {[%clk 0:00:03]} 57. Ne3 {[%clk 0:00:14]}  Bb3 {[%clk 0:00:03]} 58. Nxg4 {[%clk 0:00:14]}  Kg7 {[%clk 0:00:03]} 59. Ne3 {[%clk 0:00:15]}  Ba2 {[%clk 0:00:03]} 60. Ng2 {[%clk 0:00:15]}  Bd5 {[%clk 0:00:04]} 61. Nh4 {[%clk 0:00:16]}  Bf7 {[%clk 0:00:04]} 62. Nf5+ {[%clk 0:00:17]}  Kg8 {[%clk 0:00:05]} 63. Nh6+ {[%clk 0:00:16]}  Kg7 {[%clk 0:00:06]} 64. Nxf7 {[%clk 0:00:16]}  Kf8 {[%clk 0:00:06]} 65. Kf5 {[%clk 0:00:16]}  Ke7 {[%clk 0:00:07]} 66. e6 {[%clk 0:00:17]}  Kf8 {[%clk 0:00:06]} 67. Ng5+ {[%clk 0:00:17]}  Kg7 {[%clk 0:00:07]} 68. Rf7+ {[%clk 0:00:17]}  Kg8 {[%clk 0:00:08]} 69. e7 {[%clk 0:00:17]} 1-0


[Site "https://www.chess.com"]

[Event "Titled Tuesday Blitz July 25 Early 2023"]
[White "laimis61"]
[Black "Vovk, Orest"]
[BlackFideId "14113490"]
[WhiteElo "2281"]
[BlackElo "2579"]
[Result "1-0"]
[Round "1"]
[TimeControl "180+2"]
[Date "2023.07.25"]
[WhiteClock "0:01:23"]
[BlackClock "0:00:04"]
[Board "183"]

1. e4 {[%clk 0:02:59]}  g5 {[%clk 0:02:58]} 2. d4 {[%clk 0:02:54]}  g4 {[%clk 0:02:58]} 3. Nc3 {[%clk 0:02:49]}  Bg7 {[%clk 0:02:57]} 4. Be3 {[%clk 0:02:45]}  d6 {[%clk 0:02:56]} 5. Qd2 {[%clk 0:02:44]}  c6 {[%clk 0:02:55]} 6. h3 {[%clk 0:02:36]}  h5 {[%clk 0:02:51]} 7. hxg4 {[%clk 0:02:35]}  hxg4 {[%clk 0:02:52]} 8. Rxh8 {[%clk 0:02:35]}  Bxh8 {[%clk 0:02:53]} 9. O-O-O {[%clk 0:02:35]}  Qa5 {[%clk 0:02:51]} 10. Kb1 {[%clk 0:02:33]}  b5 {[%clk 0:02:51]} 11. a3 {[%clk 0:02:31]}  Be6 {[%clk 0:02:50]} 12. Nge2 {[%clk 0:02:30]}  b4 {[%clk 0:02:33]} 13. axb4 {[%clk 0:02:24]}  Qxb4 {[%clk 0:02:33]} 14. d5 {[%clk 0:02:23]}  Bd7 {[%clk 0:02:25]} 15. Bd4 {[%clk 0:02:22]}  Bxd4 {[%clk 0:02:22]} 16. Nxd4 {[%clk 0:02:21]}  Nf6 {[%clk 0:02:09]} 17. Qh6 {[%clk 0:02:17]}  Kd8 {[%clk 0:02:01]} 18. Qf8+ {[%clk 0:02:16]}  Be8 {[%clk 0:01:52]} 19. dxc6 {[%clk 0:02:10]}  a6 {[%clk 0:01:27]} 20. c7+ {[%clk 0:02:08]}  Kxc7 {[%clk 0:01:24]} 21. Qxe7+ {[%clk 0:02:08]}  Nbd7 {[%clk 0:01:24]} 22. Nf5 {[%clk 0:02:03]}  Rb8 {[%clk 0:01:16]} 23. Qxd6+ {[%clk 0:02:02]}  Qxd6 {[%clk 0:01:15]} 24. Nxd6 {[%clk 0:02:02]}  Nc5 {[%clk 0:01:04]} 25. f3 {[%clk 0:01:57]}  Bc6 {[%clk 0:00:52]} 26. Nxf7 {[%clk 0:01:52]}  gxf3 {[%clk 0:00:43]} 27. gxf3 {[%clk 0:01:51]}  Rf8 {[%clk 0:00:43]} 28. Ne5 {[%clk 0:01:50]}  Bb7 {[%clk 0:00:37]} 29. Be2 {[%clk 0:01:45]}  Nh5 {[%clk 0:00:35]} 30. Nd5+ {[%clk 0:01:39]}  Bxd5 {[%clk 0:00:29]} 31. Rxd5 {[%clk 0:01:38]}  Ne6 {[%clk 0:00:28]} 32. Rd7+ {[%clk 0:01:35]}  Kb8 {[%clk 0:00:19]} 33. Bxa6 {[%clk 0:01:31]}  Nd8 {[%clk 0:00:04]} 34. Rh7 {[%clk 0:01:23]} 1-0


[Site "https://www.chess.com"]

[Event "Titled Tuesday Blitz July 25 Early 2023"]
[White "Fernandez Bustamante, Leancy B."]
[Black "Sadykov, Ramil"]
[WhiteFideId "3523870"]
[BlackFideId "24113590"]
[WhiteElo "2274"]
[BlackElo "2577"]
[Result "0-1"]
[Round "1"]
[TimeControl "180+2"]
[Date "2023.07.25"]
[WhiteClock "0:00:01"]
[BlackClock "0:00:14"]
[Board "185"]

1. e4 {[%clk 0:02:56]}  c5 {[%clk 0:02:59]} 2. Nf3 {[%clk 0:02:55]}  e6 {[%clk 0:02:59]} 3. c3 {[%clk 0:02:55]}  Nf6 {[%clk 0:02:57]} 4. e5 {[%clk 0:02:55]}  Nd5 {[%clk 0:02:58]} 5. d4 {[%clk 0:02:52]}  cxd4 {[%clk 0:02:59]} 6. cxd4 {[%clk 0:02:53]}  Be7 {[%clk 0:02:50]} 7. Nc3 {[%clk 0:02:51]}  Nxc3 {[%clk 0:02:37]} 8. bxc3 {[%clk 0:02:51]}  Qc7 {[%clk 0:02:34]} 9. Bd2 {[%clk 0:02:50]}  O-O {[%clk 0:02:32]} 10. Bd3 {[%clk 0:02:49]}  b6 {[%clk 0:02:10]} 11. O-O {[%clk 0:02:46]}  Ba6 {[%clk 0:02:06]} 12. Bg5 {[%clk 0:02:29]}  Qd8 {[%clk 0:01:43]} 13. Bxe7 {[%clk 0:02:06]}  Qxe7 {[%clk 0:01:42]} 14. c4 {[%clk 0:02:04]}  Rc8 {[%clk 0:01:33]} 15. Rc1 {[%clk 0:01:38]}  h6 {[%clk 0:01:22]} 16. Qe2 {[%clk 0:01:37]}  Bb7 {[%clk 0:01:15]} 17. Be4 {[%clk 0:01:29]}  Bxe4 {[%clk 0:01:10]} 18. Qxe4 {[%clk 0:01:29]}  Na6 {[%clk 0:01:08]} 19. Rfd1 {[%clk 0:01:20]}  d6 {[%clk 0:01:08]} 20. exd6 {[%clk 0:01:18]}  Qxd6 {[%clk 0:01:08]} 21. Ne5 {[%clk 0:01:17]}  Rd8 {[%clk 0:01:00]} 22. Rd3 {[%clk 0:01:15]}  Rac8 {[%clk 0:00:54]} 23. Qf3 {[%clk 0:01:03]}  Rc7 {[%clk 0:00:49]} 24. Re1 {[%clk 0:00:32]}  Nb4 {[%clk 0:00:48]} 25. Rd2 {[%clk 0:00:26]}  Nc6 {[%clk 0:00:47]} 26. Nxc6 {[%clk 0:00:22]}  Qxc6 {[%clk 0:00:47]} 27. d5 {[%clk 0:00:18]}  Qxc4 {[%clk 0:00:44]} 28. d6 {[%clk 0:00:18]}  Rcd7 {[%clk 0:00:39]} 29. Red1 {[%clk 0:00:16]}  b5 {[%clk 0:00:33]} 30. g4 {[%clk 0:00:15]}  b4 {[%clk 0:00:29]} 31. Rd4 {[%clk 0:00:14]}  Qc5 {[%clk 0:00:28]} 32. Qg3 {[%clk 0:00:14]}  a5 {[%clk 0:00:24]} 33. h4 {[%clk 0:00:14]}  f6 {[%clk 0:00:21]} 34. g5 {[%clk 0:00:13]}  hxg5 {[%clk 0:00:21]} 35. hxg5 {[%clk 0:00:13]}  Qxg5 {[%clk 0:00:21]} 36. Rg4 {[%clk 0:00:13]}  Qe5 {[%clk 0:00:21]} 37. Qg2 {[%clk 0:00:10]}  f5 {[%clk 0:00:19]} 38. Rg6 {[%clk 0:00:09]}  Rxd6 {[%clk 0:00:19]} 39. Rxd6 {[%clk 0:00:08]}  Rxd6 {[%clk 0:00:20]} 40. Qg5 {[%clk 0:00:06]}  Rd1+ {[%clk 0:00:14]} 41. Kg2 {[%clk 0:00:06]}  Qe4+ {[%clk 0:00:14]} 42. f3 {[%clk 0:00:01]}  Qe2+ {[%clk 0:00:14]} 0-1


[Site "https://www.chess.com"]

[Event "Titled Tuesday Blitz July 25 Early 2023"]
[White "Al-Tarboush, Ward"]
[Black "Senft, Sean"]
[WhiteFideId "7601450"]
[BlackFideId "2044960"]
[WhiteElo "2576"]
[BlackElo "2271"]
[Result "1-0"]
[Round "1"]
[TimeControl "180+2"]
[Date "2023.07.25"]
[WhiteClock "0:01:43"]
[BlackClock "0:00:30"]
[Board "186"]

1. e4 {[%clk 0:03:00]}  c5 {[%clk 0:02:58]} 2. Nf3 {[%clk 0:03:00]}  d6 {[%clk 0:02:59]} 3. d4 {[%clk 0:03:00]}  cxd4 {[%clk 0:02:59]} 4. Nxd4 {[%clk 0:03:00]}  Nf6 {[%clk 0:03:00]} 5. Nc3 {[%clk 0:03:01]}  a6 {[%clk 0:03:00]} 6. h3 {[%clk 0:03:01]}  e5 {[%clk 0:02:59]} 7. Nde2 {[%clk 0:03:01]}  h5 {[%clk 0:03:00]} 8. Bg5 {[%clk 0:03:00]}  Be6 {[%clk 0:02:59]} 9. g3 {[%clk 0:02:59]}  Nbd7 {[%clk 0:02:58]} 10. a4 {[%clk 0:02:58]}  Be7 {[%clk 0:02:57]} 11. Bg2 {[%clk 0:02:58]}  Qc7 {[%clk 0:02:57]} 12. O-O {[%clk 0:02:58]}  Rc8 {[%clk 0:02:53]} 13. b3 {[%clk 0:02:57]}  O-O {[%clk 0:02:52]} 14. f4 {[%clk 0:02:53]}  exf4 {[%clk 0:02:49]} 15. gxf4 {[%clk 0:02:51]}  Nc5 {[%clk 0:02:39]} 16. f5 {[%clk 0:02:47]}  Bd7 {[%clk 0:02:39]} 17. b4 {[%clk 0:02:47]}  Ncxe4 {[%clk 0:01:47]} 18. Nxe4 {[%clk 0:02:32]}  Nxe4 {[%clk 0:01:46]} 19. Bxe7 {[%clk 0:02:30]}  Rfe8 {[%clk 0:01:47]} 20. Bxe4 {[%clk 0:02:18]}  Rxe7 {[%clk 0:01:46]} 21. Qd4 {[%clk 0:02:12]}  Rce8 {[%clk 0:01:44]} 22. Ng3 {[%clk 0:02:04]}  d5 {[%clk 0:01:36]} 23. Nxh5 {[%clk 0:02:01]}  Qe5 {[%clk 0:00:42]} 24. Qxe5 {[%clk 0:02:00]}  Rxe5 {[%clk 0:00:43]} 25. Bd3 {[%clk 0:01:59]}  g6 {[%clk 0:00:34]} 26. Nf6+ {[%clk 0:01:59]}  Kg7 {[%clk 0:00:29]} 27. Nxd7 {[%clk 0:01:55]}  Re3 {[%clk 0:00:30]} 28. Kg2 {[%clk 0:01:43]} 1-0


[Site "https://www.chess.com"]

[Event "Titled Tuesday Blitz July 25 Early 2023"]
[White "Joshi, Pankaj"]
[Black "Vlassov, Nikolai"]
[WhiteFideId "5006210"]
[BlackFideId "4103360"]
[WhiteElo "2271"]
[BlackElo "2576"]
[Result "0-1"]
[Round "1"]
[TimeControl "180+2"]
[Date "2023.07.25"]
[WhiteClock "0:00:08"]
[BlackClock "0:00:11"]
[Board "187"]

1. e4 {[%clk 0:02:59]}  Nc6 {[%clk 0:02:59]} 2. d4 {[%clk 0:02:55]}  d5 {[%clk 0:02:58]} 3. e5 {[%clk 0:02:55]}  h5 {[%clk 0:02:58]} 4. h3 {[%clk 0:02:49]}  Bf5 {[%clk 0:02:57]} 5. c3 {[%clk 0:02:49]}  Qd7 {[%clk 0:02:56]} 6. Nf3 {[%clk 0:02:43]}  O-O-O {[%clk 0:02:56]} 7. Bf4 {[%clk 0:02:37]}  f6 {[%clk 0:02:55]} 8. Nbd2 {[%clk 0:02:34]}  g5 {[%clk 0:02:55]} 9. Bg3 {[%clk 0:02:26]}  g4 {[%clk 0:02:33]} 10. Nh4 {[%clk 0:02:21]}  fxe5 {[%clk 0:02:30]} 11. Nxf5 {[%clk 0:02:17]}  Qxf5 {[%clk 0:02:29]} 12. hxg4 {[%clk 0:02:18]}  Qe6 {[%clk 0:02:24]} 13. Qe2 {[%clk 0:01:48]}  Bg7 {[%clk 0:02:21]} 14. O-O-O {[%clk 0:01:47]}  Qxg4 {[%clk 0:02:15]} 15. Qxg4+ {[%clk 0:01:45]}  hxg4 {[%clk 0:02:15]} 16. Be2 {[%clk 0:01:45]}  Nh6 {[%clk 0:01:46]} 17. dxe5 {[%clk 0:01:29]}  Nxe5 {[%clk 0:01:38]} 18. Nb3 {[%clk 0:01:19]}  Nhf7 {[%clk 0:01:13]} 19. Nd4 {[%clk 0:01:17]}  Rh6 {[%clk 0:00:44]} 20. Kc2 {[%clk 0:00:45]}  Rf6 {[%clk 0:00:26]} 21. Rh7 {[%clk 0:00:42]}  Rg8 {[%clk 0:00:26]} 22. Bh4 {[%clk 0:00:29]}  Ra6 {[%clk 0:00:20]} 23. Bxa6 {[%clk 0:00:28]}  bxa6 {[%clk 0:00:20]} 24. Bxe7 {[%clk 0:00:28]}  Nc4 {[%clk 0:00:14]} 25. b3 {[%clk 0:00:25]}  Nb6 {[%clk 0:00:12]} 26. Bc5 {[%clk 0:00:19]}  Ng5 {[%clk 0:00:10]} 27. Rh5 {[%clk 0:00:19]}  Ne4 {[%clk 0:00:10]} 28. Bxb6 {[%clk 0:00:18]}  axb6 {[%clk 0:00:10]} 29. f3 {[%clk 0:00:18]}  gxf3 {[%clk 0:00:10]} 30. gxf3 {[%clk 0:00:19]}  Bxd4 {[%clk 0:00:10]} 31. Rxd4 {[%clk 0:00:16]}  Rg2+ {[%clk 0:00:09]} 32. Kc1 {[%clk 0:00:16]}  Nxc3 {[%clk 0:00:09]} 33. Rh8+ {[%clk 0:00:15]}  Kb7 {[%clk 0:00:09]} 34. Rd2 {[%clk 0:00:15]}  Nxa2+ {[%clk 0:00:09]} 35. Kd1 {[%clk 0:00:14]}  Nc3+ {[%clk 0:00:09]} 36. Ke1 {[%clk 0:00:14]}  Rg1+ {[%clk 0:00:09]} 37. Kf2 {[%clk 0:00:15]}  Rb1 {[%clk 0:00:09]} 38. Rc2 {[%clk 0:00:14]}  Rxb3 {[%clk 0:00:09]} 39. Rh7 {[%clk 0:00:15]}  a5 {[%clk 0:00:10]} 40. f4 {[%clk 0:00:15]}  Ne4+ {[%clk 0:00:09]} 41. Kg2 {[%clk 0:00:15]}  Nc5 {[%clk 0:00:09]} 42. f5 {[%clk 0:00:14]}  Rb4 {[%clk 0:00:09]} 43. Rf2 {[%clk 0:00:13]}  Rg4+ {[%clk 0:00:10]} 44. Kh3 {[%clk 0:00:13]}  Rg8 {[%clk 0:00:09]} 45. f6 {[%clk 0:00:13]}  Ne4 {[%clk 0:00:08]} 46. f7 {[%clk 0:00:11]}  Rf8 {[%clk 0:00:07]} 47. Rf4 {[%clk 0:00:10]}  Ng5+ {[%clk 0:00:07]} 48. Kg4 {[%clk 0:00:10]}  Nxh7 {[%clk 0:00:08]} 49. Kh5 {[%clk 0:00:11]}  d4 {[%clk 0:00:07]} 50. Kg6 {[%clk 0:00:10]}  d3 {[%clk 0:00:07]} 51. Rd4 {[%clk 0:00:10]}  c5 {[%clk 0:00:07]} 52. Rxd3 {[%clk 0:00:10]}  Rxf7 {[%clk 0:00:07]} 53. Kxf7 {[%clk 0:00:10]}  Ng5+ {[%clk 0:00:08]} 54. Kf6 {[%clk 0:00:10]}  Ne4+ {[%clk 0:00:08]} 55. Ke5 {[%clk 0:00:11]}  Ng5 {[%clk 0:00:08]} 56. Rg3 {[%clk 0:00:11]}  Kc6 {[%clk 0:00:06]} 57. Rxg5 {[%clk 0:00:10]}  Kb5 {[%clk 0:00:07]} 58. Ke4 {[%clk 0:00:11]}  Kc4 {[%clk 0:00:07]} 59. Ke3 {[%clk 0:00:10]}  b5 {[%clk 0:00:07]} 60. Rg4+ {[%clk 0:00:11]}  Kc3 {[%clk 0:00:07]} 61. Rg5 {[%clk 0:00:10]}  Kb4 {[%clk 0:00:08]} 62. Kd3 {[%clk 0:00:10]}  a4 {[%clk 0:00:08]} 63. Kc2 {[%clk 0:00:10]}  a3 {[%clk 0:00:08]} 64. Rg4+ {[%clk 0:00:11]}  Ka5 {[%clk 0:00:08]} 65. Kb3 {[%clk 0:00:11]}  b4 {[%clk 0:00:08]} 66. Rc4 {[%clk 0:00:11]}  Kb5 {[%clk 0:00:09]} 67. Rh4 {[%clk 0:00:11]}  Kc6 {[%clk 0:00:09]} 68. Rh5 {[%clk 0:00:11]}  Kb5 {[%clk 0:00:09]} 69. Rh6 {[%clk 0:00:11]}  Ka5 {[%clk 0:00:09]} 70. Rc6 {[%clk 0:00:12]}  Kb5 {[%clk 0:00:10]} 71. Rc8 {[%clk 0:00:12]}  Kb6 {[%clk 0:00:10]} 72. Rh8 {[%clk 0:00:12]}  Kb5 {[%clk 0:00:10]} 73. Rh6 {[%clk 0:00:12]}  c4+ {[%clk 0:00:10]} 74. Kc2 {[%clk 0:00:11]}  b3+ {[%clk 0:00:09]} 75. Kc3 {[%clk 0:00:10]}  a2 {[%clk 0:00:10]} 76. Kb2 {[%clk 0:00:10]}  Kb4 {[%clk 0:00:10]} 77. Rh3 {[%clk 0:00:10]}  c3+ {[%clk 0:00:09]} 78. Rxc3 {[%clk 0:00:07]}  a1=Q+ {[%clk 0:00:09]} 79. Kxa1 {[%clk 0:00:07]}  Kxc3 {[%clk 0:00:10]} 80. Kb1 {[%clk 0:00:08]}  b2 {[%clk 0:00:10]} 81. Ka2 {[%clk 0:00:08]}  Kc2 {[%clk 0:00:11]} 0-1


[Site "https://www.chess.com"]